[Event "FIDE WSCC 65 2022"]
[Site "Assisi"]
[Date "2022.11.23"]
[Round "8.1"]
[White "Kristiansen, Jens"]
[Black "Nunn, John D M"]
[Result "1-0"]
[ECO "D03"]
[WhiteElo "2353"]
[BlackElo "2580"]
[Annotator "TA"]
[PlyCount "48"]
[EventDate "2022.11.14"]
[EventType "swiss"]
[EventCountry "ITA"]
[SourceTitle "playchess.com"]
[Source "ChessBase"]
[SourceQuality "1"]
[TimeControl "40/5400+30:1800+30"]

{[%evp 14,48,1,0,13,-5,-13,-7,-6,-45,33,30,37,44,20,27,449,427,537,508,500,460,447,455,420,427,514,505,522,521,495,490,835,806,871,839,1560]} 1. Nf3 {[%emt 0:00:02]} Nf6 {[%emt 0:00:06]} 2. d4 {[%emt 0:00:05]} g6 {[%emt 0:00:09]} 3. Bg5 {[%emt 0:00:10]} Bg7 {[%emt 0:00:07]} 4. Nbd2 {[%emt 0:00:09]} d5 {[%emt 0:00:29]} 5. e3 {[%emt 0:00:29]} O-O {[%emt 0:00:08]} 6. Bd3 {[%emt 0:04:01]} c5 {[%emt 0:00:49]} 7. c3 {[%emt 0:00:34]} Qb6 {[%emt 0:01:04]} 8. Qb3 {[%emt 0:02:51] [#]} Qe6 $146 {[%emt 0:02:11] D03: 1 d4 d5 2 Nf3 Nf6 3 Bg5, including Torre Attack with early ...d5.} ({Predecessor:} 8... c4 9. Qxb6 axb6 10. Bc2 Bf5 11. Bxf6 Bxf6 12. e4 dxe4 13. Bxe4 Bxe4 14. Nxe4 Nd7 15. Ke2 b5 16. Nfd2 {1-0 (55) Murzin,V (2505)-Chigaev,M (2643) Chess.com INT 2021}) 9. c4 {[%emt 0:14:19]} (9. Bxf6 {simplifies} c4 10. Bxg7 cxb3 11. Bxf8 Kxf8 12. axb3 Qb6 13. b4) 9... cxd4 {[%emt 0:11:14]} 10. Nxd4 {[%emt 0:00:58]} Qg4 {[%emt 0:00:20][%csl LRg2,LRg5] The position is equal.} 11. Bxf6 {[%emt 0:04:19]} Qxg2 {[%emt 0:10:42]} (11... Bxf6 $15 12. cxd5 Qxg2) 12. Bxg7 $1 $14 {[%emt 0:03:13]} Qxh1+ {[%emt 0:00:27]} 13. Ke2 {[%emt 0:00:10] The board is on fire.} Qxa1 {[%emt 0:05:06]} 14. Bxf8 {[%emt 0:00:19]} Kxf8 $4 {[%emt 0:00:09][%mdl 8192] [#] Black cannot hold the game after this.} (14... e5 $1 $11 15. Nb5 Kxf8 16. cxd5 Na6) 15. Bb1 $1 $18 {[%emt 0:00:54]} Bg4+ {[%emt 0:12:21]} 16. f3 {[%emt 0:00:37]} Bf5 {[%emt 0:00:04]} 17. Nxf5 {[%emt 0:01:09]} gxf5 {[%emt 0:00:21]} 18. Qxb7 {[%emt 0:00:12]} ({Less strong is} 18. cxd5 Na6 $16) 18... dxc4 {[%emt 0:00:07]} 19. Bxf5 {[%emt 0:06:27][%mdl 64] [#]} ({Weaker is} 19. Qxa8 Qxb2 20. Bxf5 (20. Qxa7 c3 $11) 20... c3 $14) 19... Kg7 {[%emt 0:03:42] White is clearly winning.} 20. Nxc4 {[%emt 0:05:20]} Qg1 {[%emt 0:06:48]} 21. Qxa8 {[%emt 0:01:46] Active counter play!} Qxh2+ {[%emt 0:00:03]} 22. Kd3 {[%emt 0:00:35]} Na6 {[%emt 0:00:06]} (22... Qc7 $142 23. Qe4 e6 24. Bxh7 Nd7) 23. Qxa7 {[%emt 0:01:07]} Nb4+ {[%emt 0:00:08]} 24. Kc3 {[%emt 0:00:37]} Qg1 {[%emt 0:45:49] Weighted Error Value: White=0.05 (flawless) /Black=0.57} 1-0

[Event "FIDE WSCC 65 2022"]
[Site "Assisi"]
[Date "2022.11.23"]
[Round "8.2"]
[White "Bogdanov, Valentin"]
[Black "Knaak, Rainer"]
[Result "0-1"]
[ECO "E20"]
[WhiteElo "2323"]
[BlackElo "2457"]
[Annotator "TA"]
[PlyCount "125"]
[EventDate "2022.11.14"]
[EventType "swiss"]
[EventCountry "ITA"]
[SourceTitle "playchess.com"]
[Source "ChessBase"]
[SourceQuality "1"]
[TimeControl "40/5400+30:1800+30"]

{[%evp 15,125,-24,-18,-36,-41,-37,-17,-29,10,-16,-24,-81,-89,-114,-99,-139,-135,-160,-175,-163,-47,-116,-143,-155,-149,-153,-146,-183,-183,-204,-206,-204,-193,-208,-164,-172,-183,-181,0,-192,-133,-191,-109,-169,-113,-122,-62,-57,-54,-91,0,-111,-57,-58,0,0,0,0,0,0,180,0,247,50,86,59,47,45,355,239,226,203,199,183,214,16,13,0,0,0,0,0,0,0,0,0,0,-11,-15,-25,0,-23,-15,-127,-82,-89,-82,-393,-385,-273,-344,-525,-9,-72,-38,-1274,-1258,-1112,-843,-4718,-4491,-29983]} 1. d4 {[%emt 0:00:03]} d5 {[%emt 0:00:07]} 2. c4 {[%emt 0:00:09]} e6 {[%emt 0:00:10]} 3. Nc3 {[%emt 0:00:10]} Bb4 {[%emt 0:00:27]} 4. Nf3 {[%emt 0:01:28]} dxc4 {[%emt 0:00:46]} 5. g3 {[%emt 0:06:34]} Nf6 {[%emt 0:02:29]} 6. Bg2 {[%emt 0:00:24]} O-O {[%emt 0:00:52]} 7. O-O {[%emt 0:01:31]} Nc6 {[%emt 0:03:22]} 8. e3 {[%emt 0:06:21]} Rb8 {[%emt 0:03:09]} 9. Qe2 {[%emt 0:08:48] E20: Nimzo-Indian: 4 g3 and 4 f3.} b5 {[%emt 0:01:52]} 10. Rd1 {[%emt 0:00:25]} a6 {[%emt 0:19:44]} (10... Nd5 $5 {[%cal Rb4c3]} 11. Bd2 Nxc3 12. bxc3 Ba3 $11) 11. e4 {[%emt 0:09:27] The position is equal.} Bb7 {[%emt 0:06:24] [#]} 12. Bg5 $146 {[%emt 0:08:46]} ({Predecessor:} 12. Bf4 Na5 13. Ne1 Re8 14. g4 Bf8 15. g5 Nd7 16. Qg4 b4 17. Ne2 Bd6 18. Nc2 {0-1 (36) Nilssen,J (2274)-Bekker Jensen,S (2438) Denmark 2015}) 12... h6 {[%emt 0:06:56] Against e5} 13. Bxf6 {[%emt 0:01:24]} (13. d5 $11 exd5 14. Nxd5 hxg5 15. Nxb4) 13... Qxf6 $17 {[%emt 0:00:08]} 14. e5 {[%emt 0:00:15]} Qe7 {[%emt 0:01:44]} 15. Ne4 {[%emt 0:00:45]} Rfd8 {[%emt 0:04:23]} 16. Rac1 {[%emt 0:02:30]} Ba5 {[%emt 0:05:47]} 17. Nc5 {[%emt 0:07:00] [#]} Nb4 {[%emt 0:10:02]} (17... Nxd4 $1 $19 {[%mdl 512]} 18. Nxd4 Qxc5 19. Bxb7 Rxd4 20. Rxd4 Qxd4) 18. Nxb7 {[%emt 0:03:28]} (18. a3 $1 $15 Nd5 19. Nd2) 18... Rxb7 {[%emt 0:00:05]} 19. b3 {[%emt 0:01:15]} cxb3 {[%emt 0:01:17]} 20. axb3 {[%emt 0:00:14]} Rbb8 {[%emt 0:01:42]} 21. Ne1 {[%emt 0:08:42]} Bb6 {[%emt 0:00:43]} 22. Qe4 {[%emt 0:00:59]} Rd7 {[%emt 0:00:38]} 23. Rd2 {[%emt 0:01:27]} Rbd8 {[%emt 0:03:49][%cal Rd7d4]} 24. Nf3 {[%emt 0:00:54]} Rd5 {[%emt 0:05:22]} 25. Bf1 {[%emt 0:05:01]} Qd7 {[%emt 0:02:52]} 26. Rcd1 {[%emt 0:02:09]} Qe7 $2 {[%emt 0:01:57]} (26... Nc6 $19 27. Kg2 Nxd4 28. Nxd4 Bxd4) 27. h4 $2 {[%emt 0:05:28]} (27. Rc1 $11) 27... c6 {[%emt 0:02:02]} (27... c5 $19 28. Be2 cxd4) 28. h5 {[%emt 0:00:32]} (28. Rc1 $17 {was necessary.}) 28... a5 {[%emt 0:00:22]} (28... c5 $19 29. Ne1 cxd4) 29. Be2 {[%emt 0:03:30]} (29. Kg2 $17) 29... Ra8 {[%emt 0:00:13]} (29... a4 $19 30. bxa4 bxa4) 30. Ne1 {[%emt 0:00:33]} Qg5 {[%emt 0:06:44]} (30... a4 $17 {aiming for ...a3.} 31. bxa4 bxa4) 31. Nc2 $15 {[%emt 0:01:56]} Nxc2 {[%emt 0:00:47]} 32. Rxc2 {[%emt 0:00:21]} Rad8 {[%emt 0:00:21]} ({Black should play} 32... Rc8 $1 $17) 33. Rcd2 {[%emt 0:02:08]} (33. Kg2 $11) 33... c5 {[%emt 0:01:34]} ({Black should try} 33... Qe7 $17 {And now ...Qb4 would win.} 34. Kg2 Qb4) 34. Kg2 {[%emt 0:00:56]} cxd4 {[%emt 0:03:55]} ({Don't play} 34... Rxd4 35. Rxd4 Rxd4 36. Rxd4 cxd4 37. f4 $11) ({Better is} 34... Qf5 $15 35. Qxf5 exf5) 35. f4 $11 {[%emt 0:02:03]} Qe7 {[%emt 0:00:05]} 36. Bd3 {[%emt 0:00:22] White wants to mate with Qh7+.} f5 {[%emt 0:00:16]} 37. exf6 {[%emt 0:00:50]} Qxf6 $2 {[%emt 0:00:03]} (37... gxf6 $11 38. Re2 (38. Qg6+ Qg7 $17) 38... e5) 38. Re1 $2 {[%emt 0:02:13]} (38. Qh7+ $1 $18 Kf8 39. Re2) 38... Kf7 $2 {[%emt 0:02:01]} (38... Rxh5 $2 39. Qh7+ Kf7 40. Rde2 $18) (38... Qf5 $1 $11) 39. Rc2 $2 {[%emt 0:00:25]} (39. Qh7 $18) 39... Bc5 {[%emt 0:01:05]} (39... Rxh5 $2 40. Rc6 Qf5 41. Qxe6+ Qxe6 42. Rcxe6 $18) 40. Rec1 {[%emt 0:00:58][%mdl 1024] White has strong compensation.} Bd6 {[%emt 0:00:16]} 41. Rc6 {[%emt 0:37:37]} Qe7 $2 {[%emt 0:18:36][%mdl 8192]} (41... Rxh5 $2 42. Rxd6 $1 Rxd6 43. Rc7+ Ke8 44. Qh7 $18) (41... Qf5 $14) 42. Qg6+ {[%emt 0:00:00]} Kf8 {[%emt 0:00:16]} 43. Be4 {[%emt 0:00:00] Qh7 is the strong threat.} Rc5 {[%emt 0:02:14]} 44. R1xc5 {[%emt 0:00:00]} Bxc5 {[%emt 0:00:06]} 45. Rxe6 {[%emt 0:00:00]} ({Inferior is} 45. Qxe6 Qxe6 46. Rxe6 d3 $17) (45. Qh7 $1 $18 {Intending Bg6 and mate.} Ke8 46. Bd3) 45... Qf7 {[%emt 0:00:10]} 46. Rc6 {[%emt 0:00:00]} Qxg6 {[%emt 0:01:25]} 47. hxg6 {[%emt 0:00:00][%mdl 4096] Endgame KRB-KRB} Be7 {[%emt 0:00:07]} 48. Bd3 {[%emt 0:00:00][%cal Oc6a6]} a4 {[%emt 0:00:06]} 49. bxa4 {[%emt 0:00:00]} bxa4 {[%emt 0:00:06]} 50. Ra6 {[%emt 0:00:00] Inhibits Ra8.} a3 {[%emt 0:00:06]} 51. Kf3 {[%emt 0:00:00]} Bc5 {[%emt 0:04:09]} 52. Ra5 {[%emt 0:00:00]} Re8 {[%emt 0:01:11]} 53. Bc4 {[%emt 0:00:00][%mdl 64]} (53. Rxc5 $5 Re3+ $8 54. Kg4 Rxd3 55. Rc8+ Ke7 56. Rc7+ Kd6 57. Rxg7 $11) 53... Re3+ {[%emt 0:01:10]} 54. Kg4 {[%emt 0:00:00]} (54. Kf2 $11 Bb6 55. Ra6) 54... Bb6 $1 $17 {[%emt 0:00:15]} 55. Ra6 {[%emt 0:00:00]} Rc3 $1 {[%emt 0:00:08]} 56. Rxb6 $2 {[%emt 0:00:38][%mdl 8192]} (56. Bf7 $17 {is more resistant.} Bd8 57. Re6) 56... Rxc4 {[%emt 0:00:03] KR-KR} 57. Ra6 {[%emt 0:00:20]} Rc3 {[%emt 0:00:08][%cal Oh6h5]} 58. Kf5 {[%emt 0:01:02]} (58. Ra8+ $142 Ke7 59. Ra7+ Kd6 60. f5) 58... Ke7 $2 {[%emt 0:06:45]} (58... Rxg3 $19 {Hoping for ...h5.} 59. Ke4 h5) 59. Ke4 {[%emt 0:00:06]} (59. Ra7+ $1 $11 Kd6 60. Ke4) 59... Rxg3 {[%emt 0:02:07] Threatens to win with ...h5.} (59... d3 $5 {[%cal Rd3d2]} 60. Ra7+ Ke6 61. Ra6+ Ke7 62. Ra7+ Kf6 63. Ra6+ Ke7 $17) 60. Kxd4 $2 {[%emt 0:00:12][%mdl 8192]} (60. Ra7+ $15 Ke8 61. Kxd4) 60... h5 $19 {[%emt 0:00:08][%cal Bh6h5,Bh5h4][%mdl 32] Strongly threatening ...h4. Black is clearly winning.} 61. Ke5 {[%emt 0:01:30] [#]} h4 $1 {[%emt 0:01:38]} 62. Ra7+ {[%emt 0:00:46] [#]} Kd8 $1 {[%emt 0:00:02]} 63. Kd4 {[%emt 0:07:25] Both players deserved the win here.   Weighted Error Value: White=0.69/Black=0.45} 0-1

[Event "FIDE WSCC 65 2022"]
[Site "Assisi"]
[Date "2022.11.23"]
[Round "8.3"]
[White "Gaprindashvili, Nona"]
[Black "Jansa, Vlastimil"]
[Result "1/2-1/2"]
[ECO "A21"]
[WhiteElo "2268"]
[BlackElo "2390"]
[Annotator "TA"]
[PlyCount "51"]
[EventDate "2022.11.14"]
[EventType "swiss"]
[EventCountry "ITA"]
[SourceTitle "playchess.com"]
[Source "ChessBase"]
[SourceQuality "1"]
[TimeControl "40/5400+30:1800+30"]

{[%evp 12,51,4,-2,0,-4,15,-8,18,19,34,31,16,21,44,8,36,43,49,50,49,47,51,51,49,6,21,19,37,33,23,25,44,11,10,0,81,0,0,0,27,0]} 1. d4 {[%emt 0:00:30]} d6 {[%emt 0:00:35]} 2. c4 {[%emt 0:00:00]} e5 {[%emt 0:00:10]} 3. Nc3 {[%emt 0:00:01]} exd4 {[%emt 0:00:24]} 4. Qxd4 {[%emt 0:00:03]} Nf6 {[%emt 0:00:37]} 5. b3 {[%emt 0:01:10]} g6 {[%emt 0:01:34]} 6. Bb2 {[%emt 0:00:24]} Bg7 {[%emt 0:00:11]} 7. g3 {[%emt 0:13:56]} O-O {[%emt 0:00:47] A21: English Opening: 1...e5 2 Nc3.} 8. Bg2 {[%emt 0:00:19]} Re8 {[%emt 0:04:33][%cal Of6e4]} 9. Nh3 {[%emt 0:02:23]} Nbd7 {[%emt 0:07:26][%cal Of6e4] [#] aiming for ...Ne4! The position is equal.} 10. Qd2 {[%emt 0:08:06]} Nc5 {[%emt 0:03:44]} 11. Nf4 {[%emt 0:06:18]} a5 {[%emt 0:03:40]} 12. Rd1 {[%emt 0:01:08] [#]} Bf5 $146 {[%emt 0:14:16]} ({Predecessor:} 12... a4 13. b4 Ncd7 14. Ncd5 Nxd5 15. Nxd5 Ne5 16. Ne3 a3 17. Bc3 Ng4 18. Nd5 Bxc3 19. Nxc3 {½-½ (37) Odesskij,I (2445)-Tregubov,P (2520) St Petersburg 1996}) 13. O-O {[%emt 0:01:32]} (13. Nb5 {looks sharper.} Nce4 14. Qc1 c6 15. Nd4) 13... Nfe4 {[%emt 0:08:32]} 14. Nxe4 {[%emt 0:01:47]} (14. Bxe4 {simplifies} Bxe4 15. f3 Bc6 16. e4) 14... Bxe4 {[%emt 0:02:40]} 15. Bxg7 {[%emt 0:05:29]} Kxg7 {[%emt 0:01:59]} 16. Qb2+ {[%emt 0:55:24]} Kg8 {[%emt 0:02:15]} 17. Bxe4 {[%emt 0:00:00]} Nxe4 {[%emt 0:03:08]} 18. Nd5 {[%emt 0:00:00] Prevents Qf6.} c6 {[%emt 0:03:09]} (18... a4 {keeps more tension.} 19. f3 c6 20. Nf4 Nc5) 19. Nf4 {[%emt 0:00:00]} Qe7 {[%emt 0:05:49]} 20. f3 {[%emt 0:02:00]} Nf6 {[%emt 0:35:01]} 21. e4 {[%emt 0:00:30]} Qe5 {[%emt 0:00:30]} 22. Rf2 {[%emt 0:00:30]} a4 {[%emt 0:00:30]} 23. b4 {[%emt 0:00:30]} a3 {[%emt 0:00:30]} (23... g5 $11 {keeps the balance.} 24. Qxe5 dxe5) 24. Qxe5 {[%emt 0:00:30]} (24. Qd2 $16) 24... dxe5 $11 {[%emt 0:00:30]} 25. Nd3 {[%emt 0:00:30]} Nd7 {[%emt 0:00:30]} 26. Rfd2 {[%emt 0:00:30] Weighted Error Value: White=0.14 (very precise) /Black=0.19 (very precise)} 1/2-1/2

[Event "FIDE WSCC 65 2022"]
[Site "Assisi"]
[Date "2022.11.23"]
[Round "8.4"]
[White "Bergstrom, Rolf"]
[Black "Fernandez Garcia, Jose Luis"]
[Result "0-1"]
[ECO "C47"]
[WhiteElo "2166"]
[BlackElo "2358"]
[Annotator "TA"]
[PlyCount "78"]
[EventDate "2022.11.14"]
[EventType "swiss"]
[EventCountry "ITA"]
[SourceTitle "playchess.com"]
[Source "ChessBase"]
[SourceQuality "1"]
[TimeControl "40/5400+30:1800+30"]

{[%evp 9,78,0,0,0,17,20,12,0,16,0,18,0,0,0,0,0,0,0,0,0,0,0,0,-28,-26,-30,-31,-41,-15,-10,-5,-132,-132,-132,-132,-160,-164,-194,-114,-112,-114,-139,-131,-131,-131,-131,-131,-131,-131,-280,-249,-1516,-1526,-1537,-1520,-1519,-1457,-1437,-1450,-1368,-1348,-1242,-1161,-4816,-4389,-5089,-4863,-6311,-6203,-5410,-5406]} 1. e4 {[%emt 0:00:06]} e5 {[%emt 0:01:03]} 2. Nf3 {[%emt 0:00:15]} Nc6 {[%emt 0:00:08]} 3. Nc3 {[%emt 0:00:10]} Nf6 {[%emt 0:00:10][%cal Bg8f6,Bf6d5,Bd5c3][%mdl 32]} 4. h3 {[%emt 0:00:31]} d5 {[%emt 0:00:10]} 5. exd5 {[%emt 0:00:09]} Nxd5 {[%emt 0:00:03]} 6. Bb5 {[%emt 0:00:14] C47: Scotch Four Knights and Four Knights with 4 g3.} Nxc3 $1 {[%emt 0:00:06]} 7. bxc3 {[%emt 0:00:20]} ({Reject} 7. dxc3 Qxd1+ 8. Kxd1 f6 $15) 7... Bd6 {[%emt 0:00:16]} 8. O-O {[%emt 0:00:16] The position is equal.} O-O {[%emt 0:00:07]} 9. d4 {[%emt 0:00:26]} exd4 {[%emt 0:00:07]} 10. cxd4 {[%emt 0:00:09]} h6 {[%emt 0:00:05]} 11. c4 {[%emt 0:11:00]} Qf6 {[%emt 0:01:51]} 12. Be3 {[%emt 0:00:38] [#]} Rd8 $146 {[%emt 0:04:35]} ({Predecessor:} 12... a6 13. Bxc6 bxc6 14. c5 Be7 15. Ne5 Rd8 16. Qa4 Bxc5 17. Qxc6 Bxd4 18. Bxd4 Qxc6 19. Nxc6 {½-½ (61) Korchmar,V (2450)-Paravyan,D (2617) Chess.com INT 2022}) 13. Ba4 {[%emt 0:05:20]} Bf5 {[%emt 0:00:29]} 14. Bc2 {[%emt 0:00:26]} Ne7 {[%emt 0:01:21]} 15. Rb1 {[%emt 0:05:16]} b6 {[%emt 0:01:11]} 16. Bxf5 {[%emt 0:02:40]} Nxf5 {[%emt 0:05:29]} 17. Qc2 {[%emt 0:00:49]} Re8 {[%emt 0:18:33]} 18. Rfe1 {[%emt 0:03:49]} Re7 {[%emt 0:06:48]} 19. Qd3 {[%emt 0:03:20]} Rd8 {[%emt 0:03:25][%cal Od6c5]} (19... Nxe3 {keeps more tension.} 20. Rxe3 Rxe3 21. Qxe3 Qf5) 20. Kh1 {[%emt 0:10:28] [#]} (20. g4 $11 Nh4 21. Nxh4 Qxh4 22. Kg2) 20... Bc5 $1 $17 {[%emt 0:03:07][%mdl 512] Black is more active.} 21. Rbd1 {[%emt 0:03:57] [#]} Nxd4 $1 {[%emt 0:02:05][%mdl 512]} 22. Nxd4 {[%emt 0:04:22]} (22. Bxd4 Rxe1+) 22... Bxd4 {[%emt 0:00:22]} 23. Bxd4 {[%emt 0:00:08] [#]} Rxe1+ {[%emt 0:03:14]} (23... Rxd4 $1 $19 {[%mdl 512]} 24. Qc2 Rxe1+ 25. Rxe1 Qc6) 24. Rxe1 {[%emt 0:00:10][%cal Oe1e8] Strongly threatening Re8+!} Qd6 {[%emt 0:00:10]} (24... Qxd4 $2 25. Re8+ $3 {[%mdl 512]} Rxe8 26. Qxd4 $18) 25. Qc3 {[%emt 0:15:51]} Qxd4 {[%emt 0:00:37][%mdl 4096] Endgame KQR-KQR} 26. Re8+ {[%emt 0:00:33]} Kh7 $1 {[%emt 0:00:25]} 27. Qc2+ {[%emt 0:00:44]} g6 {[%emt 0:00:53]} 28. Rxd8 {[%emt 0:04:49]} Qxd8 {[%emt 0:00:33] KQ-KQ} 29. c5 {[%emt 0:01:29] [#] This costs White the game.} (29. g3 $17) 29... bxc5 $1 $19 {[%emt 0:02:24]} 30. Qxc5 $2 {[%emt 0:00:06]} (30. Qa4) 30... Qd1+ {[%emt 0:00:17] Black is clearly winning.} 31. Kh2 {[%emt 0:00:05] [#]} Qd6+ $1 {[%emt 0:00:03]} 32. Qxd6 {[%emt 0:00:06]} cxd6 {[%emt 0:00:00][%cal Bc7d6,Bd6d5][%mdl 32] KP-KP} 33. Kg3 {[%emt 0:00:20]} Kg7 {[%emt 0:00:33]} 34. Kf4 {[%emt 0:05:56]} Kf6 {[%emt 0:00:19]} 35. Ke4 {[%emt 0:05:15]} Ke6 {[%emt 0:00:05]} 36. f4 {[%emt 0:03:05]} d5+ {[%emt 0:00:31]} 37. Kd4 {[%emt 0:00:06]} Kd6 {[%emt 0:00:53]} 38. g4 {[%emt 0:00:45]} g5 {[%emt 0:00:41]} 39. f5 {[%emt 0:00:54]} f6 {[%emt 0:00:14] Weighted Error Value: White=0.77/Black=0.04 (flawless)} 0-1

[Event "FIDE WSCC 65 2022"]
[Site "Assisi"]
[Date "2022.11.23"]
[Round "8.5"]
[White "Madebrink, Lars"]
[Black "Legky, Nikolay A"]
[Result "0-1"]
[ECO "E67"]
[WhiteElo "2084"]
[BlackElo "2350"]
[Annotator "TA"]
[PlyCount "70"]
[EventDate "2022.11.14"]
[EventType "swiss"]
[EventCountry "ITA"]
[SourceTitle "playchess.com"]
[Source "ChessBase"]
[SourceQuality "1"]
[TimeControl "40/5400+30:1800+30"]

{[%evp 16,70,22,26,46,12,28,14,19,6,13,-7,0,0,-10,-14,-16,-75,-24,-32,-18,-38,22,12,0,0,47,0,40,-106,-92,-262,-256,-362,-107,-136,-123,-112,-123,-395,-394,-403,-390,-439,-312,-1225,-1217,-1220,-1210,-1209,-1202,-1183,-1172,-1184,-1184,-986,-954]} 1. d4 {[%emt 0:00:03]} Nf6 {[%emt 0:00:07]} 2. c4 {[%emt 0:00:10]} g6 {[%emt 0:00:40]} 3. Nc3 {[%emt 0:00:26]} Bg7 {[%emt 0:00:05]} 4. g3 {[%emt 0:01:33]} O-O {[%emt 0:00:06]} 5. Bg2 {[%emt 0:00:07]} d6 {[%emt 0:00:08]} 6. Nf3 {[%emt 0:00:25]} Nbd7 {[%emt 0:00:07]} 7. O-O {[%emt 0:00:59]} e5 {[%emt 0:00:04]} 8. h3 {[%emt 0:00:43]} Re8 {[%emt 0:01:30]} 9. e4 {[%emt 0:03:43]} b6 {[%emt 0:02:34] E67: King's Indian: Fianchetto: 6...Nbd7.} 10. d5 {[%emt 0:13:40]} Nc5 {[%emt 0:00:28]} 11. Qc2 {[%emt 0:00:16]} a5 {[%emt 0:00:05] The position is equal.} 12. Be3 {[%emt 0:03:35]} Rf8 {[%emt 0:00:29]} 13. Ne1 {[%emt 0:20:44] [#]} Nh5 $146 {[%emt 0:01:40]} ({Predecessor:} 13... Ne8 14. Nd3 f5 15. Nxc5 bxc5 16. f4 exf4 17. Bxf4 fxe4 18. Nxe4 Bf5 19. g4 Bxe4 20. Qxe4 {1-0 (43) Voit,D (2294)-Gedvilaite,M (1985) Istanbul 2012}) 14. Kh2 {[%emt 0:02:04]} f5 {[%emt 0:06:12]} 15. exf5 {[%emt 0:01:23]} gxf5 {[%emt 0:00:04]} 16. f4 {[%emt 0:00:19]} (16. Nd3 $11 {keeps the balance.}) 16... Kh8 {[%emt 0:02:26]} (16... exf4 $17 17. gxf4 Re8) 17. Bf3 $11 {[%emt 0:04:59]} Qe8 {[%emt 0:26:09]} 18. Qe2 {[%emt 0:04:20]} (18. Ng2 {keeps more tension.} Qg6 19. Bxh5 Qxh5 20. Nb5) 18... exf4 {[%emt 0:00:19]} (18... Nf6 $15) 19. gxf4 {[%emt 0:00:22]} (19. Bxh5 Qxe3 20. Rxf4 Qxe2+ 21. Bxe2 a4 $17) (19. Bxc5 $2 Nxg3 20. Qxe8 Nxf1+ 21. Kg1 Rxe8 $19) 19... Nf6 {[%emt 0:00:05]} (19... Bxc3 $2 20. Bxh5 $18) 20. Rg1 {[%emt 0:07:26] Inhibits Qg6.} Bd7 {[%emt 0:00:45]} (20... Qf7 $11 {is superior.}) 21. Nc2 {[%emt 0:04:47]} ({Not} 21. Qg2 $2 Ng4+ 22. hxg4 Qxe3 $19) (21. Qf2 $1 $14) 21... Qe7 {[%emt 0:03:47][%cal Of6g4]} 22. Nd4 {[%emt 0:00:55]} (22. Rg5 $14 {stays ahead.}) 22... Rae8 {[%emt 0:00:07]} (22... Ng4+ {looks sharper.} 23. hxg4 Qh4+ 24. Kg2 fxg4 25. Rh1 gxf3+ 26. Qxf3 Qe7) 23. Rae1 $2 {[%emt 0:00:12] [#]} (23. Ne6 $17 {was worth a try.} Nxe6 24. dxe6 Bxe6 25. Rae1) 23... Ng4+ $1 $19 {[%emt 0:15:56]} 24. Bxg4 {[%emt 0:05:30] [#]} (24. hxg4 $142 Qh4+ 25. Kg2 fxg4 26. Rh1 gxf3+ 27. Qxf3) 24... fxg4 $2 {[%emt 0:00:39]} (24... Qxe3 $1 $19 25. Qxe3 Rxe3 26. Nxf5 (26. Rxe3 $2 {too greedy.} Bxd4 27. Rf3 Bxg1+ 28. Kxg1 fxg4 $19) 26... Rxe1 27. Rxe1 Bxc3 28. bxc3 Bxf5 29. Bxf5 Rxf5) 25. Ne6 $17 {[%emt 0:02:49]} Nxe6 {[%emt 0:01:40]} 26. dxe6 {[%emt 0:00:23]} Bxe6 $40 {[%emt 0:18:28][%mdl 128] Black wants a kill.} 27. Nd5 $2 {[%emt 0:03:57][%mdl 8192]} (27. Qf2 $17 {was necessary.}) 27... Bxd5 $19 {[%emt 0:02:32]} ({Worse is} 27... Qh4 28. Qg2 Bxd5 29. cxd5 $17) 28. cxd5 {[%emt 0:00:05] [#]} Rxf4 {[%emt 0:00:17][%mdl 512]} 29. Rxg4 {[%emt 0:03:01]} (29. Bxf4 Qxe2+) 29... Re4 {[%emt 0:00:24]} 30. Qg2 $2 {[%emt 0:04:39]} (30. Rxe4 Qxe4 31. Qg2) 30... Rxe3 {[%emt 0:05:43] Black is clearly winning.} 31. Rxe3 {[%emt 0:00:09]} Qxe3 {[%emt 0:00:04]} 32. Rxg7 {[%emt 0:00:07]} Qf4+ {[%emt 0:00:16]} 33. Rg3 {[%emt 0:00:36]} Re3 {[%emt 0:02:27]} 34. b3 {[%emt 0:00:12]} Qe5 {[%emt 0:01:59]} 35. h4 {[%emt 0:02:47]} Re2 {[%emt 0:00:17] Weighted Error Value: White=0.68/Black=0.23 (precise)} 0-1